[Event "8th Amsterdam Summer Open-B 2018"]
[Site "Amsterdam"]
[Date "2018.07.09"]
[Round "3"]
[White "De Ruiter, Tom"]
[Black "Yalcin, Bilal"]
[Result "1/2-1/2"]
[ECO "B10"]
[WhiteElo "2032"]
[BlackElo "1770"]
[Annotator "NA"]
[PlyCount "42"]
[EventDate "2018.07.07"]
[EventType "swiss"]
[EventCountry "NED"]
[SourceTitle "playchess.com"]
[Source "ChessBase"]
[SourceQuality "1"]
[TimeControl "40/5400+30:1800+30"]

1. e4 {[%emt 0:00:00]} c6 {[%emt 0:00:31]} 2. d3 {[%emt 0:00:00]} d5 {[%emt 0:00:08]} 3. Nd2 {[%emt 0:00:00]} e5 {[%emt 0:00:18]} 4. Ngf3 {[%emt 0:00:04]} Bd6 {[%emt 0:00:08]} 5. g3 {[%emt 0:00:59]} Nf6 {[%emt 0:00:31]} 6. Bg2 {[%emt 0:00:07]} O-O {[%emt 0:00:23]} 7. O-O {[%emt 0:01:27]} Re8 {[%emt 0:02:28]} 8. Re1 {[%emt 0:04:37]} Nbd7 {[%emt 0:00:42]} 9. b3 {[%emt 0:02:04]} a5 {[%emt 0:03:51]} 10. a4 {[%emt 0:01:47]} Bb4 {[%emt 0:01:54]} 11. Bb2 {[%emt 0:00:46]} d4 {[%emt 0:00:32]} 12. Rf1 {[%emt 0:00:53]} Qe7 {[%emt 0:03:28]} 13. Nh4 {[%emt 0:00:24]} Nb6 {[%emt 0:01:23]} 14. h3 {[%emt 0:05:54]} g5 {[%emt 0:05:45]} 15. Nf5 {[%emt 0:02:37]} Bxf5 {[%emt 0:00:13]} 16. exf5 {[%emt 0:00:02]} Nbd5 {[%emt 0:02:05]} 17. Ne4 {[%emt 0:02:05]} Nxe4 {[%emt 0:00:22]} 18. Bxe4 {[%emt 0:01:32]} Nc3 {[%emt 0:00:12]} 19. Bxc3 {[%emt 0:01:10]} Bxc3 {[%emt 0:00:05]} 20. Rb1 {[%emt 0:01:12]} f6 {[%emt 0:03:27]} 21. Kg2 {[%emt 0:01:40]} Kh8 1/2-1/2

[Event "8th Amsterdam Summer Open-B 2018"]
[Site "Amsterdam"]
[Date "2018.07.09"]
[Round "3"]
[White "Van `t Schip, Richard"]
[Black "Klaren, Duncan"]
[Result "1-0"]
[ECO "B52"]
[WhiteElo "1997"]
[BlackElo "1843"]
[Annotator "NA"]
[PlyCount "81"]
[EventDate "2018.07.07"]
[EventType "swiss"]
[EventCountry "NED"]
[SourceTitle "playchess.com"]
[Source "ChessBase"]
[SourceQuality "1"]
[TimeControl "40/5400+30:1800+30"]

1. e4 {[%emt 0:00:00]} c5 {[%emt 0:00:00]} 2. Nf3 {[%emt 0:00:00]} d6 {[%emt 0:00:00]} 3. Bb5+ {[%emt 0:00:00]} Bd7 {[%emt 0:00:00]} 4. Bxd7+ {[%emt 0:00:06]} Nxd7 {[%emt 0:00:00]} 5. O-O {[%emt 0:03:37]} Ngf6 {[%emt 0:00:08]} 6. Qe2 {[%emt 0:02:33]} Rc8 {[%emt 0:00:37]} 7. c3 {[%emt 0:03:14] B52: Sizilianisch (Rossolimo-Variante)} Qc7 {[%emt 0:00:57]} (7... e6 8. d4 cxd4 9. cxd4 d5 10. e5 Ne4 11. Be3 Nb6 12. Ne1 f5 13. f3 Ng5 14. b3 Nf7 {½-½ (30) Mamedov,R (2680)-Ivanchuk,V (2729) Kocaeli 2017}) 8. d4 {[%emt 0:17:25]} cxd4 {[%emt 0:00:17]} 9. cxd4 {[%emt 0:01:00]} Qc4 {[%emt 0:00:46]} 10. Qxc4 $146 {[%emt 0:04:12]} ({Vorgänger:} 10. Qe3 g6 11. Bd2 Qa6 12. Nc3 Bg7 13. h3 O-O 14. e5 dxe5 15. dxe5 {½-½ (59) Bacallao Alonso,Y (2554)-Ortiz Suarez,I (2578) Varadero 2016}) 10... Rxc4 {[%emt 0:00:28]} 11. Na3 {[%emt 0:16:51]} Rc8 {[%emt 0:02:12]} 12. Re1 {[%emt 0:05:03]} e6 {[%emt 0:02:54]} 13. Nb5 {[%emt 0:05:06]} a6 {[%emt 0:02:44]} 14. Nc3 {[%emt 0:00:22]} Nb6 {[%emt 0:02:27]} 15. Bg5 {[%emt 0:05:31]} Be7 {[%emt 0:03:13]} 16. Rad1 {[%emt 0:06:49]} d5 {[%emt 0:03:50]} 17. Bxf6 {[%emt 0:01:55]} Bxf6 {[%emt 0:01:42]} 18. exd5 {[%emt 0:00:08]} O-O {[%emt 0:00:40]} 19. dxe6 {[%emt 0:01:23]} fxe6 {[%emt 0:00:46]} 20. Rxe6 {[%emt 0:02:10]} Nc4 {[%emt 0:01:46]} 21. Nd5 {[%emt 0:01:42]} Nxb2 {[%emt 0:01:42]} 22. Rb1 {[%emt 0:01:26]} Nd3 {[%emt 0:01:59]} 23. Re3 {[%emt 0:07:41]} Rc1+ {[%emt 0:03:54]} 24. Rxc1 {[%emt 0:02:33]} Nxc1 {[%emt 0:00:06]} 25. Kf1 {[%emt 0:02:10]} Rd8 {[%emt 0:04:26]} 26. Nxf6+ {[%emt 0:01:37]} gxf6 {[%emt 0:00:05]} 27. a3 {[%emt 0:01:57]} Kf7 {[%emt 0:03:33]} 28. Rc3 {[%emt 0:01:18]} Na2 {[%emt 0:01:01]} 29. Rc2 {[%emt 0:00:07]} b5 {[%emt 0:00:12]} 30. Rxa2 {[%emt 0:00:09]} Rc8 {[%emt 0:00:07]} 31. Ke2 {[%emt 0:00:53]} Ke6 {[%emt 0:01:26]} 32. Kd2 {[%emt 0:00:40]} Kd5 $18 {[%emt 0:00:46]} 33. Rc2 {[%emt 0:00:17]} Rg8 {[%emt 0:00:05]} 34. g3 {[%emt 0:00:35]} Ke4 {[%emt 0:00:11]} 35. Ke2 {[%emt 0:00:25]} Re8 {[%emt 0:00:07]} 36. Rc7 {[%emt 0:02:46]} h6 {[%emt 0:01:54]} 37. Rd7 {[%emt 0:01:05]} Re6 {[%emt 0:01:39]} 38. Nd2+ {[%emt 0:00:53]} Kf5+ {[%emt 0:00:13]} 39. Kd3 {[%emt 0:00:13]} Re1 {[%emt 0:01:55]} 40. Rd6 {[%emt 0:00:42]} a5 {[%emt 0:00:10]} 41. Rd5+ {[%emt 0:30:36] Ke4+ Kxe4} 1-0

[Event "8th Amsterdam Summer Open-B 2018"]
[Site "Amsterdam"]
[Date "2018.07.09"]
[Round "3"]
[White "Cheng, Ngo Hin"]
[Black "Veenstra, Frits"]
[Result "*"]
[ECO "B01"]
[WhiteElo "1986"]
[BlackElo "1837"]
[Annotator "NA"]
[PlyCount "55"]
[EventDate "2018.07.07"]
[EventType "swiss"]
[EventCountry "NED"]
[SourceTitle "playchess.com"]
[Source "ChessBase"]
[SourceQuality "1"]
[TimeControl "40/5400+30:1800+30"]

1. e4 {[%emt 0:00:00]} d5 {[%emt 0:00:00]} 2. exd5 {[%emt 0:00:00]} Nf6 {[%emt 0:00:00]} 3. Nf3 {[%emt 0:00:00]} Bg4 {[%emt 0:00:00]} 4. Bb5+ {[%emt 0:00:28]} Nbd7 {[%emt 0:01:49]} 5. h3 {[%emt 0:00:54]} Bh5 {[%emt 0:06:43]} 6. c4 {[%emt 0:01:08] LiveBook: 4 Games} a6 {[%emt 0:00:47]} 7. Bxd7+ {[%emt 0:00:39]} Qxd7 {[%emt 0:01:11]} 8. d4 {[%emt 0:01:03]} e6 {[%emt 0:12:07]} 9. Nc3 {[%emt 0:24:41]} exd5 {[%emt 0:22:54]} 10. Qe2+ {[%emt 0:08:13]} Be7 {[%emt 0:01:21]} 11. g4 {[%emt 0:03:12]} Bg6 {[%emt 0:02:52]} 12. Ne5 {[%emt 0:00:09]} Qe6 {[%emt 0:07:30]} 13. f4 {[%emt 0:08:56]} Be4 $16 {[%emt 0:01:08]} 14. O-O {[%emt 0:03:56]} g6 {[%emt 0:10:19]} 15. b3 {[%emt 0:30:57]} c6 {[%emt 0:08:41]} 16. Bb2 {[%emt 0:02:16]} O-O-O {[%emt 0:00:15]} 17. Qe3 {[%emt 0:04:36]} Rhe8 {[%emt 0:05:10]} 18. c5 {[%emt 0:01:52]} Bxc5 {[%emt 0:01:47]} 19. Nxe4 {[%emt 0:00:55]} Nxe4 {[%emt 0:06:02]} 20. dxc5 {[%emt 0:00:09]} f6 {[%emt 0:02:43]} 21. Nf3 {[%emt 0:00:36]} Qf7 {[%emt 0:00:19]} 22. Qd4 {[%emt 0:00:43]} Ng3 {[%emt 0:00:21]} 23. Qxf6 {[%emt 0:01:01]} Qc7 {[%emt 0:00:49]} 24. Be5 {[%emt 0:00:57]} Qa5 {[%emt 0:00:34]} 25. Rfe1 {[%emt 0:02:34]} Qxc5+ {[%emt 0:00:48]} 26. Nd4 {[%emt 0:02:18]} Ne4 {[%emt 0:00:34]} 27. Rac1 {[%emt 0:00:43]} Qa7 {[%emt 0:04:09]} 28. Rxc6+ {[%emt 0:00:18]} *

[Event "8th Amsterdam Summer Open-B 2018"]
[Site "Amsterdam"]
[Date "2018.07.09"]
[Round "3"]
[White "Markus, John Raymond"]
[Black "Laan, David"]
[Result "0-1"]
[ECO "A47"]
[WhiteElo "1980"]
[BlackElo "1872"]
[Annotator "NA"]
[PlyCount "64"]
[EventDate "2018.07.07"]
[EventType "swiss"]
[EventCountry "NED"]
[SourceTitle "playchess.com"]
[Source "ChessBase"]
[SourceQuality "1"]
[TimeControl "40/5400+30:1800+30"]

1. d4 {[%emt 0:00:00]} Nf6 {[%emt 0:00:00]} 2. Nf3 {[%emt 0:00:00]} e6 {[%emt 0:00:00]} 3. Bg5 {[%emt 0:00:00]} Be7 {[%emt 0:00:04]} 4. Nbd2 {[%emt 0:00:22]} b6 {[%emt 0:01:19]} 5. e3 {[%emt 0:01:24]} Bb7 {[%emt 0:01:30]} 6. Bd3 {[%emt 0:00:23]} Na6 {[%emt 0:01:51]} 7. c3 {[%emt 0:00:48]} c5 {[%emt 0:01:48]} 8. O-O {[%emt 0:01:49]} O-O {[%emt 0:01:52]} 9. Qe2 {[%emt 0:03:12]} Nc7 {[%emt 0:02:12]} 10. e4 {[%emt 0:12:14]} Rc8 {[%emt 0:08:25]} 11. a4 {[%emt 0:05:05]} cxd4 {[%emt 0:14:36]} 12. Nxd4 {[%emt 0:06:22]} h6 {[%emt 0:13:02]} 13. Bh4 {[%emt 0:09:26]} a6 {[%emt 0:06:01]} 14. f4 {[%emt 0:00:40]} b5 {[%emt 0:05:05]} 15. axb5 {[%emt 0:06:04]} Nxb5 {[%emt 0:01:00]} 16. Nxb5 {[%emt 0:03:05]} axb5 {[%emt 0:00:29]} 17. Bxf6 {[%emt 0:11:30]} Bxf6 {[%emt 0:01:12]} 18. Bxb5 {[%emt 0:01:06]} Rb8 {[%emt 0:04:05]} 19. Kh1 {[%emt 0:05:01]} Qb6 {[%emt 0:02:36]} 20. e5 {[%emt 0:07:29]} Be7 {[%emt 0:02:03]} 21. c4 {[%emt 0:05:29]} Rfd8 {[%emt 0:02:42]} 22. Ne4 {[%emt 0:03:43]} d5 {[%emt 0:05:47]} 23. exd6 {[%emt 0:00:29]} Bxd6 {[%emt 0:00:10]} 24. Rad1 {[%emt 0:01:17]} Bc7 {[%emt 0:02:07]} 25. c5 {[%emt 0:02:00]} Qa5 {[%emt 0:02:25]} 26. Nc3 {[%emt 0:02:37]} Qb4 {[%emt 0:02:56]} 27. c6 {[%emt 0:01:29]} Ba8 {[%emt 0:00:16]} 28. Ra1 {[%emt 0:04:41]} Qc5 {[%emt 0:04:43]} 29. Rad1 {[%emt 0:03:43]} Bxc6 {[%emt 0:01:47]} 30. Bxc6 {[%emt 0:00:10]} Qxc6 {[%emt 0:00:14]} 31. f5 {[%emt 0:00:19]} Rxd1 {[%emt 0:01:44]} 32. Qxd1 {[%emt 0:00:37]} Rxb2 {[%emt 0:00:22]} 0-1

[Event "8th Amsterdam Summer Open-B 2018"]
[Site "Amsterdam"]
[Date "2018.07.09"]
[Round "3"]
[White "Koeweiden, Bart"]
[Black "Honkoop, Gilian"]
[Result "0-1"]
[ECO "A03"]
[WhiteElo "1781"]
[BlackElo "1941"]
[Annotator "NA"]
[PlyCount "56"]
[EventDate "2018.07.07"]
[EventType "swiss"]
[EventCountry "NED"]
[SourceTitle "playchess.com"]
[Source "ChessBase"]
[SourceQuality "1"]
[TimeControl "40/5400+30:1800+30"]

1. f4 {[%emt 0:12:02]} d5 {[%emt 0:00:08]} 2. Nf3 {[%emt 0:00:05]} g6 {[%emt 0:00:09]} 3. e3 {[%emt 0:00:42]} Bg7 {[%emt 0:00:11]} 4. d4 {[%emt 0:00:24]} Nh6 {[%emt 0:00:38]} 5. Bd3 {[%emt 0:00:39]} O-O {[%emt 0:00:12]} 6. O-O {[%emt 0:00:59]} c5 {[%emt 0:01:46]} 7. c3 {[%emt 0:04:36]} Nc6 {[%emt 0:01:47]} 8. Nbd2 {[%emt 0:02:30]} Qb6 {[%emt 0:07:26]} 9. Kh1 {[%emt 0:02:37]} Bf5 {[%emt 0:07:04]} 10. Bxf5 {[%emt 0:10:03]} Nxf5 {[%emt 0:00:15]} 11. Qe1 {[%emt 0:00:29]} Nd6 {[%emt 0:01:53]} 12. Ng5 {[%emt 0:04:29]} Rae8 {[%emt 0:24:33]} 13. Qh4 {[%emt 0:14:29]} h6 {[%emt 0:00:10]} 14. Ngf3 {[%emt 0:00:03]} e6 {[%emt 0:22:33]} 15. Ne5 {[%emt 0:07:31]} Nf5 {[%emt 0:11:09]} 16. Qe1 {[%emt 0:00:35]} Nxe5 {[%emt 0:00:38]} 17. fxe5 {[%emt 0:00:07]} f6 {[%emt 0:30:35]} 18. exf6 {[%emt 0:01:15]} Bxf6 {[%emt 0:01:37]} 19. e4 {[%emt 0:01:50]} Ne7 {[%emt 0:01:07]} 20. e5 {[%emt 0:00:29]} Bg7 {[%emt 0:00:06]} 21. Nf3 {[%emt 0:00:52]} Nc6 {[%emt 0:02:03]} 22. Be3 {[%emt 0:01:51]} cxd4 {[%emt 0:00:59]} 23. cxd4 {[%emt 0:00:14]} Qxb2 {[%emt 0:00:37]} 24. Rf2 {[%emt 0:05:06]} Qb4 {[%emt 0:04:44]} 25. Qd1 {[%emt 0:01:03]} Rc8 {[%emt 0:02:06]} 26. a3 {[%emt 0:00:08]} Qc3 {[%emt 0:02:03]} 27. Rc2 {[%emt 0:00:43]} Qxe3 {[%emt 0:00:13]} 28. Rf2 {[%emt 0:00:03]} Qc3 0-1

[Event "8th Amsterdam Summer Open-B 2018"]
[Site "Amsterdam"]
[Date "2018.07.09"]
[Round "3"]
[White "Ghebreab, Elnathan"]
[Black "Holwijn, Melvin"]
[Result "*"]
[ECO "C42"]
[WhiteElo "1756"]
[BlackElo "1956"]
[Annotator "NA"]
[PlyCount "118"]
[EventDate "2018.07.07"]
[EventType "swiss"]
[EventCountry "NED"]
[SourceTitle "playchess.com"]
[Source "ChessBase"]
[SourceQuality "1"]
[TimeControl "40/5400+30:1800+30"]

1. e4 {[%emt 0:00:00]} e5 {[%emt 0:03:54]} 2. Nf3 {[%emt 0:00:20]} Nf6 {[%emt 0:00:24]} 3. Nxe5 {[%emt 0:00:22]} d6 {[%emt 0:00:12]} 4. Nf3 {[%emt 0:00:06]} Nxe4 {[%emt 0:00:12]} 5. Nc3 {[%emt 0:00:12]} Nf6 {[%emt 0:00:16]} 6. d4 {[%emt 0:01:43]} Be7 {[%emt 0:00:33]} 7. Bd3 {[%emt 0:11:49]} O-O {[%emt 0:00:39]} 8. O-O {[%emt 0:19:21]} Nc6 {[%emt 0:00:54]} 9. Re1 {[%emt 0:01:06]} d5 {[%emt 0:01:03]} 10. h3 {[%emt 0:03:27]} Nb4 {[%emt 0:00:29]} 11. Bb5 {[%emt 0:05:39]} c6 {[%emt 0:06:10]} 12. Bf1 {[%emt 0:27:31]} Bf5 {[%emt 0:00:26]} 13. Re2 {[%emt 0:00:21]} Ne4 {[%emt 0:01:30]} 14. a3 {[%emt 0:01:00]} Na6 {[%emt 0:01:02]} 15. g4 {[%emt 0:01:42]} Bg6 {[%emt 0:01:59]} 16. Ne5 {[%emt 0:00:37]} Nxc3 {[%emt 0:05:11]} 17. bxc3 {[%emt 0:00:11]} Bd6 {[%emt 0:02:16]} 18. Bg2 {[%emt 0:06:26]} Re8 {[%emt 0:01:29]} 19. f4 {[%emt 0:05:40]} Be4 {[%emt 0:01:17]} 20. Bxe4 {[%emt 0:00:54]} dxe4 {[%emt 0:00:07]} 21. Qe1 {[%emt 0:01:06]} f6 {[%emt 0:03:32]} 22. Nc4 {[%emt 0:00:22]} Qe7 {[%emt 0:02:12]} 23. Nxd6 {[%emt 0:01:13]} Qxd6 {[%emt 0:00:07]} 24. Rxe4 {[%emt 0:00:31]} Nc7 {[%emt 0:00:22]} 25. Bd2 {[%emt 0:01:33]} Rxe4 {[%emt 0:00:26]} 26. Qxe4 {[%emt 0:00:05]} Re8 {[%emt 0:00:08]} 27. Qf3 {[%emt 0:00:42]} Nb5 {[%emt 0:02:45]} 28. a4 {[%emt 0:00:47]} Nxd4 {[%emt 0:00:14]} 29. Qd3 {[%emt 0:02:53]} Ne2+ {[%emt 0:00:44]} 30. Kf2 {[%emt 0:00:53]} Qe6 {[%emt 0:04:03]} 31. f5 {[%emt 0:01:48]} Qe5 {[%emt 0:01:23]} 32. Kg2 {[%emt 0:04:06]} Nf4+ {[%emt 0:01:03]} 33. Bxf4 Qxf4 {[%emt 0:00:10]} 34. a5 {[%emt 0:02:18]} h5 {[%emt 0:00:44]} 35. Rf1 {[%emt 0:00:44]} Qg5 {[%emt 0:01:21]} 36. Qc4+ {[%emt 0:00:31]} Kh7 {[%emt 0:01:07]} 37. Rf2 {[%emt 0:00:50]} hxg4 {[%emt 0:02:05]} 38. hxg4 {[%emt 0:00:31]} Qe3 {[%emt 0:04:52]} 39. Qd3 {[%emt 0:00:40]} Qe4+ {[%emt 0:02:19]} 40. Qf3 {[%emt 0:00:22]} Qxf3+ {[%emt 0:01:04]} 41. Kxf3 {[%emt 0:00:32]} Re5 {[%emt 0:00:24]} 42. a6 {[%emt 0:00:16]} bxa6 {[%emt 0:00:13]} 43. Rf1 {[%emt 0:01:04]} Ra5 {[%emt 0:01:05]} 44. Rh1+ {[%emt 0:01:57]} Kg8 {[%emt 0:00:09]} 45. Rb1 {[%emt 0:00:08]} Ra2 {[%emt 0:00:24]} 46. Rb7 {[%emt 0:02:10]} Rxc2 {[%emt 0:00:12]} 47. Rxa7 {[%emt 0:00:18]} Rxc3+ {[%emt 0:00:07]} 48. Ke4 {[%emt 0:00:48]} Rc4+ {[%emt 0:02:06]} 49. Kf3 {[%emt 0:00:20]} Rc3+ {[%emt 0:01:57]} 50. Kf4 {[%emt 0:03:53]} Ra3 {[%emt 0:00:18]} 51. Rc7 {[%emt 0:01:34]} a5 {[%emt 0:00:49]} 52. Rxc6 {[%emt 0:00:26]} Ra4+ {[%emt 0:00:23]} 53. Kf3 {[%emt 0:00:18]} Rb4 {[%emt 0:00:11]} 54. Ra6 {[%emt 0:02:02]} a4 {[%emt 0:00:07]} 55. Kg3 {[%emt 0:00:31]} Rb3+ {[%emt 0:01:03]} 56. Kh4 {[%emt 0:00:17]} a3 {[%emt 0:00:13]} 57. g5 {[%emt 0:02:24]} fxg5+ {[%emt 0:00:46]} 58. Kxg5 {[%emt 0:00:27]} Kh7 {[%emt 0:01:31]} 59. Ra7 {[%emt 0:00:55]} Kg8 {[%emt 0:00:50]} *

[Event "8th Amsterdam Summer Open-B 2018"]
[Site "Amsterdam"]
[Date "2018.07.09"]
[Round "3"]
[White "Elisen, Peter"]
[Black "Boom, Harrie"]
[Result "*"]
[ECO "D02"]
[WhiteElo "1598"]
[BlackElo "1665"]
[Annotator "NA"]
[PlyCount "76"]
[EventDate "2018.07.07"]
[EventType "swiss"]
[EventCountry "NED"]
[SourceTitle "playchess.com"]
[Source "ChessBase"]
[SourceQuality "1"]
[TimeControl "40/5400+30:1800+30"]

1. d4 {[%emt 0:00:00]} Nf6 {[%emt 0:00:00]} 2. Bf4 {[%emt 0:00:00]} g6 {[%emt 0:00:12]} 3. Nf3 {[%emt 0:00:00]} Bg7 {[%emt 0:00:40]} 4. c3 {[%emt 0:00:36]} d5 {[%emt 0:02:05]} 5. h3 {[%emt 0:00:33]} b6 {[%emt 0:02:07]} 6. Nbd2 {[%emt 0:00:20]} O-O {[%emt 0:01:45]} 7. g4 {[%emt 0:00:18]} c5 {[%emt 0:04:13]} 8. Bg2 {[%emt 0:00:14]} Nc6 {[%emt 0:00:35]} 9. O-O {[%emt 0:01:02]} Bb7 {[%emt 0:02:40]} 10. Qb3 {[%emt 0:03:41]} cxd4 {[%emt 0:04:58]} 11. cxd4 {[%emt 0:00:20]} Rc8 {[%emt 0:01:21]} 12. Rfe1 {[%emt 0:04:35]} Qd7 {[%emt 0:03:12]} 13. Rad1 {[%emt 0:01:51]} Rfd8 {[%emt 0:08:08]} 14. Nf1 {[%emt 0:00:54]} Ne4 {[%emt 0:02:45]} 15. e3 {[%emt 0:09:03]} Na5 {[%emt 0:03:21]} 16. Qd3 {[%emt 0:04:09]} Nc4 {[%emt 0:02:31]} 17. Qb1 {[%emt 0:00:24]} Qe8 {[%emt 0:09:36]} 18. Bh2 {[%emt 0:06:37]} e6 {[%emt 0:05:53]} 19. Ng3 {[%emt 0:05:40]} Ncd6 {[%emt 0:04:00]} 20. Nd2 {[%emt 0:04:03]} Nxd2 {[%emt 0:02:15]} 21. Rxd2 {[%emt 0:00:14]} Rc6 {[%emt 0:01:34]} 22. h4 {[%emt 0:02:56]} Rcc8 {[%emt 0:01:59]} 23. h5 {[%emt 0:00:38]} g5 {[%emt 0:02:53]} 24. f4 {[%emt 0:01:48]} f6 {[%emt 0:01:12]} 25. Bf1 {[%emt 0:02:24]} Bf8 {[%emt 0:07:33]} 26. fxg5 {[%emt 0:00:35]} fxg5 {[%emt 0:00:20]} 27. h6 {[%emt 0:00:15]} Bxh6 {[%emt 0:05:31]} 28. Nh5 {[%emt 0:00:31]} Qg6 {[%emt 0:01:01]} 29. Bd3 {[%emt 0:00:17]} Ne4 {[%emt 0:00:13]} 30. Rf2 {[%emt 0:01:50]} Rf8 {[%emt 0:00:54]} 31. Bxe4 {[%emt 0:01:50]} dxe4 {[%emt 0:01:39]} 32. Be5 {[%emt 0:01:32]} Rxf2 {[%emt 0:04:15]} 33. Kxf2 {[%emt 0:00:12]} Rf8+ {[%emt 0:00:35]} 34. Kg1 {[%emt 0:00:23]} Rf3 {[%emt 0:05:47]} 35. Qc1 {[%emt 0:08:20]} Bf8 {[%emt 0:02:01]} 36. Rf1 {[%emt 0:03:02]} Bd5 {[%emt 0:03:10]} 37. Rxf3 {[%emt 0:02:08]} exf3 {[%emt 0:00:12]} 38. Qc7 {[%emt 0:02:36]} Qb1+ {[%emt 0:02:07]} *

[Event "8th Amsterdam Summer Open-B 2018"]
[Site "Amsterdam"]
[Date "2018.07.09"]
[Round "3"]
[White "Honkoop, Stella"]
[Black "Sala, Frank"]
[Result "*"]
[ECO "C01"]
[WhiteElo "1507"]
[BlackElo "1654"]
[Annotator "NA"]
[PlyCount "69"]
[EventDate "2018.07.07"]
[EventType "swiss"]
[EventCountry "NED"]
[SourceTitle "playchess.com"]
[Source "ChessBase"]
[SourceQuality "1"]
[TimeControl "40/5400+30:1800+30"]

1. e4 {[%emt 0:00:00]} e6 {[%emt 0:04:21]} 2. Nf3 {[%emt 0:01:07]} d5 {[%emt 0:00:29]} 3. exd5 {[%emt 0:01:00]} exd5 {[%emt 0:00:41]} 4. d4 {[%emt 0:00:58]} Bd6 {[%emt 0:01:39]} 5. Nc3 {[%emt 0:00:41]} c6 {[%emt 0:00:45]} 6. Bd3 {[%emt 0:01:11]} Nf6 {[%emt 0:01:01]} 7. O-O {[%emt 0:03:21]} O-O {[%emt 0:00:28]} 8. Re1 {[%emt 0:09:00]} Bg4 {[%emt 0:02:09]} 9. h3 {[%emt 0:00:52]} Be6 {[%emt 0:01:40]} 10. Be3 {[%emt 0:05:57]} Nbd7 {[%emt 0:03:51]} 11. Qd2 {[%emt 0:04:25]} Re8 {[%emt 0:02:03]} 12. Bf4 {[%emt 0:03:29]} Nf8 {[%emt 0:03:53]} 13. Be5 {[%emt 0:05:53]} Bxe5 {[%emt 0:06:49]} 14. Nxe5 {[%emt 0:04:21]} N6d7 {[%emt 0:03:20]} 15. Nf3 {[%emt 0:05:06]} Qf6 {[%emt 0:02:46]} 16. Qg5 {[%emt 0:10:00]} h6 {[%emt 0:02:51]} 17. Qxf6 {[%emt 0:04:35]} Nxf6 {[%emt 0:00:37]} 18. Ne5 {[%emt 0:00:31]} N6d7 {[%emt 0:04:03]} 19. f4 {[%emt 0:03:32]} Nxe5 {[%emt 0:04:29]} 20. fxe5 {[%emt 0:05:55]} Rac8 {[%emt 0:07:02]} 21. Rf1 {[%emt 0:03:10]} a6 {[%emt 0:00:26]} 22. Ne2 {[%emt 0:00:51]} c5 {[%emt 0:04:20]} 23. c3 {[%emt 0:02:25]} cxd4 {[%emt 0:02:43]} 24. cxd4 {[%emt 0:00:30]} Rc7 {[%emt 0:07:45]} 25. Rf2 {[%emt 0:03:09]} Nd7 {[%emt 0:02:23]} 26. Raf1 {[%emt 0:01:34]} Nb8 {[%emt 0:02:36]} 27. Rf4 {[%emt 0:07:54]} Nc6 {[%emt 0:03:19]} 28. Bf5 {[%emt 0:01:50]} Rec8 {[%emt 0:04:32]} 29. a3 {[%emt 0:04:50]} Ne7 {[%emt 0:04:41]} 30. Bd3 {[%emt 0:01:28]} Nc6 {[%emt 0:02:36]} 31. R1f3 {[%emt 0:03:00]} Na5 {[%emt 0:02:19]} 32. Kh2 {[%emt 0:02:27]} Nc4 {[%emt 0:01:19]} 33. Bxc4 {[%emt 0:00:12]} Rxc4 {[%emt 0:00:48]} 34. Rc3 {[%emt 0:00:50]} b5 {[%emt 0:01:57]} 35. Rff3 {[%emt 0:00:30]} *

[Event "8th Amsterdam Summer Open-B 2018"]
[Site "Amsterdam"]
[Date "2018.07.09"]
[Round "3"]
[White "Spaan, David"]
[Black "Van Duijl, Henri V"]
[Result "*"]
[ECO "B20"]
[WhiteElo "1478"]
[BlackElo "1421"]
[Annotator "NA"]
[PlyCount "66"]
[EventDate "2018.07.07"]
[EventType "swiss"]
[EventCountry "NED"]
[SourceTitle "playchess.com"]
[Source "ChessBase"]
[SourceQuality "1"]
[TimeControl "40/5400+30:1800+30"]

1. e4 {[%emt 0:00:00]} c5 {[%emt 0:00:00]} 2. Nf3 {[%emt 0:00:41]} Nc6 {[%emt 0:00:09]} 3. Bc4 {[%emt 0:00:48]} e6 {[%emt 0:00:36]} 4. Nc3 {[%emt 0:00:32]} a6 {[%emt 0:00:30]} 5. a4 {[%emt 0:06:06]} Be7 {[%emt 0:04:34]} 6. d3 {[%emt 0:04:36]} d6 {[%emt 0:00:41]} 7. Bd2 {[%emt 0:04:24]} h6 {[%emt 0:04:03]} 8. h4 {[%emt 0:12:11]} Qc7 {[%emt 0:14:15]} 9. Bf4 {[%emt 0:06:07]} Bd7 {[%emt 0:06:58]} 10. Qd2 {[%emt 0:05:48]} Nf6 {[%emt 0:06:35]} 11. Nh2 {[%emt 0:14:53]} Nd4 {[%emt 0:06:37]} 12. Ne2 {[%emt 0:05:55]} e5 {[%emt 0:02:08]} 13. Be3 {[%emt 0:03:26]} Be6 {[%emt 0:12:54]} 14. Ba2 {[%emt 0:06:03]} Bxa2 {[%emt 0:04:28]} 15. Rxa2 {[%emt 0:00:01]} Ne6 {[%emt 0:04:01]} 16. f4 {[%emt 0:02:04]} exf4 {[%emt 0:01:57]} 17. Bxf4 {[%emt 0:04:54]} Nh5 {[%emt 0:02:45]} 18. Nf3 {[%emt 0:01:40]} Nhxf4 {[%emt 0:05:35]} 19. Nxf4 {[%emt 0:00:01]} Nxf4 {[%emt 0:01:16]} 20. Qxf4 {[%emt 0:00:02]} O-O-O {[%emt 0:01:18]} 21. e5 {[%emt 0:06:11]} dxe5 {[%emt 0:03:53]} 22. Nxe5 {[%emt 0:02:41]} Bf6 {[%emt 0:02:15]} 23. Qg4+ {[%emt 0:01:49]} Kb8 {[%emt 0:00:51]} 24. Nc4 {[%emt 0:00:30]} Rd4 {[%emt 0:02:19]} 25. Qf3 {[%emt 0:02:01]} Re8+ {[%emt 0:00:33]} 26. Kd1 {[%emt 0:00:31]} Qe7 {[%emt 0:01:46]} 27. g3 {[%emt 0:02:23]} Qe6 {[%emt 0:01:18]} 28. Ra1 {[%emt 0:00:46]} Qd5 {[%emt 0:02:28]} 29. Rf1 {[%emt 0:00:29]} Qe6 {[%emt 0:01:01]} 30. Kd2 {[%emt 0:00:55]} Qg4 {[%emt 0:01:07]} 31. Rae1 {[%emt 0:00:43]} Rxe1 {[%emt 0:00:26]} 32. Kxe1 {[%emt 0:01:21]} Qe6+ {[%emt 0:00:37]} 33. Kd2 {[%emt 0:00:07]} Qg4 {[%emt 0:01:10]} *